Cogmind - Beta 13 @@@ ROGUE MODE // 2024.07.10 @ 16:40:12 Player: Xintrosi Result: Destroyed by C-57 Dissector with Dual-blade Saw Performance ------------- Evolutions (9) 4500 Regions Visited (22) 4400 Robots Destroyed (114) 570 Value Destroyed (3293) 3293 Prototype IDs (53) 1060 Alien Tech Used (0) 0 Bonus (3645) 3645 TOTAL SCORE: 17468 Bonus ------- High Alert Combat Kills 64 Follower Combat Kills 119 Aligned with FarCom 300 Met Data Miner 300 Met Warlord at Base 500 MAIN.C Attacked Warlord 500 Warlord Defense Kills 100 Met Warlord at Research 2000 Friendly Fire -238 Cogmind --------- Core Integrity 0/1600 Matter 142/300 Energy 84/100 System Corruption 3% Temperature Cool (0) Movement Core (200) Ox3 Location -1/Access Parts ------- > --- POWER (2) -------- (None) > --- PROPULSION (6) --- (None) > --- UTILITY (15) ----- (None) > --- WEAPON (2) ------- Heavy Gauss Cannon > --- INVENTORY (5) ---- Energy Well (304) Thermal Barrier Enhanced Nova Cannon Peak State ------------ > --- POWER ------------ Micro Fission Core Light Antimatter Reactor > --- PROPULSION ------- Nuclear Pulse Array Nuclear Pulse Array Q-thruster Cooled Impulse Thruster > --- UTILITY ---------- Improved Heat Sink Advanced Heat Sink Structural Scanner Machine Analyzer Enhanced Optical Array Improved Signal Interpreter Stasis Canceller Improved Reaction Control System Improved Propulsion Shielding Graphene Brace Hacking Suite Hacking Suite Improved Hacking Suite Experimental Hacking Suite Ghost Barrier > --- WEAPON ----------- Phase Gun Enhanced Nova Cannon > --- INVENTORY -------- Energy Well Improved Propulsion Shielding Thermal Barrier Enhanced Nova Cannon Missile Launcher [Rating: 141] Favorites ----------- Power Improved Ion Engine Engine Improved Ion Engine Power Core Micro Fission Core Reactor Light Antimatter Reactor Propulsion Advanced Treads Treads Advanced Treads Leg Aluminum Leg Wheel Compact Wheel Flight Unit Improved Flight Unit Utility High-capacity Storage Unit Device Structural Scanner Storage High-capacity Storage Unit Processor Machine Analyzer Hackware Hacking Suite Protection Hardened Light Armor Plating Weapon Light EM Pulse Cannon Energy Gun Phase Gun Energy Cannon Light EM Pulse Cannon Ballistic Gun Flak Gun Ballistic Cannon Light Cannon Launcher Thermoblaster Impact Weapon Heavy Hammer Slashing Weapon Greatsword Build | -11 -10 -10 -9 -9 -9 -8 -8 -7 -7 -7 -7 -6 -6 -5 -5 -5 -5 -4 -4 -3 -2 -1 ------- Run | Yrd Mat Min Mat Min Exi Min Mat Fac Low Low Dat Pro Fac Fac Upp Upp War Pro Fac Res Res Acc Slots Evolved 18 | . . . 2 . . . 2 2 . . . . 2 2 . . . . 2 2 2 2 Power 1 | . . . . . . . . . . . . . 1 . . . . . . . . . Propulsion 4 | . . . 1 . . . 1 1 . . . . . . . . . . . . 1 . Utility 13 | . . . 1 . . . 1 1 . . . . 1 2 . . . . 2 2 1 2 Weapon . | . . . . . . . . . . . . . . . . . . . . . . . Parts Attached 189 | 1 18 9 26 6 3 8 15 13 1 2 1 14 12 3 . . 18 2 2 5 15 15 Power 25 | . 5 1 2 1 . 2 2 . . . . 2 3 . . . 2 1 . . 4 . Engine 14 | . 4 1 2 1 . 2 2 . . . . 1 1 . . . . . . . . . Core 9 | . 1 . . . . . . . . . . 1 2 . . . 2 1 . . 2 . Reactor 2 | . . . . . . . . . . . . . . . . . . . . . 2 . Propulsion 43 | . 5 2 8 . . 1 4 4 . . . 3 4 1 . . 5 1 . 2 3 . Treads 13 | . 2 2 8 . . 1 . . . . . . . . . . . . . . . . Leg 6 | . 2 . . . . . . . . . . 1 3 . . . . . . . . . Wheel 1 | . 1 . . . . . . . . . . . . . . . . . . . . . Hover . | . . . . . . . . . . . . . . . . . . . . . . . Flight 23 | . . . . . . . 4 4 . . . 2 1 1 . . 5 1 . 2 3 . Utility 54 | . 2 3 4 1 . 1 5 4 1 1 . 3 4 2 . . 5 . 2 2 6 8 Device 22 | . . . 1 . . . 3 1 . 1 . 1 3 1 . . 2 . 2 1 3 3 Storage 4 | . 1 1 . . . 1 . . . . . . . . . . . . . . . 1 Processor 12 | . 1 . 3 . . . 1 1 . . . . 1 . . . 2 . . . 1 2 Hackware 5 | . . . . . . . . 1 . . . . . 1 . . 1 . . 1 1 . Protection 11 | . . 2 . 1 . . 1 1 1 . . 2 . . . . . . . . 1 2 Artifact . | . . . . . . . . . . . . . . . . . . . . . . . Weapon 67 | 1 6 3 12 4 3 4 4 5 . 1 1 6 1 . . . 6 . . 1 2 7 Energy Gun 8 | . 5 1 . . . . . . . . . . . . . . 1 . . . 1 . Energy Cannon 18 | . . . 7 3 1 3 . . . . . . . . . . 1 . . . . 3 Ballistic Gun 8 | 1 1 . . . 1 . 1 3 . . 1 . . . . . . . . . . . Ballistic Cannon 4 | . . 2 1 . . . . . . . . . . . . . . . . . . 1 Launcher 16 | . . . . 1 . 1 2 2 . . . 3 . . . . 2 . . 1 1 3 Special Weapon . | . . . . . . . . . . . . . . . . . . . . . . . Impact Weapon 10 | . . . 4 . 1 . 1 . . 1 . 3 . . . . . . . . . . Slashing Weapon 3 | . . . . . . . . . . . . . 1 . . . 2 . . . . . Piercing Weapon . | . . . . . . . . . . . . . . . . . . . . . . . Special Melee Weapon . | . . . . . . . . . . . . . . . . . . . . . . . Unidentified Prototypes 11 | . . . . . . . . . . . . 1 . . . . 8 . . . 1 1 Corrupted Parts 2 | . . . . . . 2 . . . . . . . . . . . . . . . . System Corruption 3 | . . . . . . 3 . . . . . . . . . . . . . . . . Parts Lost 43 | . 4 5 . . . . . . . . . 6 2 . . . . 2 . 4 1 19 Power 7 | . 1 . . . . . . . . . . 1 1 . . . . . . 1 1 2 Propulsion 12 | . 1 1 . . . . . . . . . 3 1 . . . . 2 . 1 . 3 Utility 14 | . . 1 . . . . . . . . . 1 . . . . . . . 1 . 11 Weapon 10 | . 2 3 . . . . . . . . . 1 . . . . . . . 1 . 3 Highest Loss Streak 19 | . 2 3 . . . . . . . . . 4 2 . . . . 2 . 4 5 19 To Critical Strikes . | . . . . . . . . . . . . . . . . . . . . . . . Average Slot Usage (%) 94 | . 99 99 99 100 92 100 98 100 100 100 94 92 86 91 88 88 89 84 84 87 85 67 Engine 8 | . 12 14 10 11 11 11 9 7 7 7 7 6 2 5 5 5 1 . . . . . Core 1 | . 1 . . . . . . . . . . . 7 5 5 5 8 11 10 8 4 2 Treads 16 | . 7 24 33 33 33 33 . . . . . . . . . . . . . . . . Leg 1 | . 12 . . . . . . . . . . . 2 2 . . . . . . . . Flight 10 | . . . . . . . 35 38 38 38 38 30 25 23 23 23 22 19 15 17 17 12 Device 7 | . . . 7 . . . 14 13 7 9 15 8 19 17 17 17 12 11 21 22 18 17 Storage 7 | . 14 14 11 11 11 11 9 7 7 7 7 6 . . . . . . . . . . Processor 10 | . 13 . 11 11 11 10 8 7 8 7 7 7 6 11 11 11 15 17 15 14 13 9 Hackware 4 | . . . . . . . . 1 7 7 7 7 6 11 11 11 15 17 15 18 19 14 Protection 5 | . . 13 3 11 11 11 2 5 5 4 . 5 6 5 5 5 . . . . 3 2 Energy Gun 2 | . 18 5 . . . . . . . . . . . . . . 1 . . . 3 2 Energy Cannon 5 | . . . 12 21 3 20 1 . . . . . . . . . . . . . . . Ballistic Gun 1 | . 9 . . . . . . 6 7 7 2 6 . . . . . . . . . . Ballistic Cannon 3 | . . 22 8 . . . . . . . . . . . . . . . . . . . Impact Weapon 1 | . . . . . 10 . 8 7 7 7 7 5 5 . . . . . . . . . Naked Turns 41 | . . . . . . . . . . . . . . . . . . . . . . 41 Heaviest Build 67 | 12 29 56 56 62 67 67 20 26 23 23 19 24 29 29 29 29 33 19 21 25 40 48 Greatest Support 68 | 20 20 40 68 67 67 67 20 25 25 25 25 25 32 39 39 39 41 33 33 36 41 41 Greatest Overweight (x) 3 | . 1 3 . . . 1 . 1 . . . 1 . . . . . . . . . 1 Average Overweight (x) . | . . 1 . . . . . . . . . . . . . . . . . . . . Largest Inventory Capacity 20 | 8 15 20 20 20 20 20 20 8 8 8 8 8 5 5 5 5 5 5 5 5 5 5 Average Capacity 13 | 8 11 19 20 20 20 20 9 8 8 8 8 7 5 5 5 5 5 5 5 5 5 5 Most Carried 20 | 6 15 19 20 20 20 20 19 8 8 8 8 8 5 5 5 5 5 5 4 5 5 5 Average Carried 12 | 6 10 17 19 19 20 19 8 7 7 8 8 5 4 4 4 5 4 4 3 4 4 4 Final Capacity 20 | 8 15 20 20 20 20 20 8 8 8 8 8 5 5 5 5 5 5 5 5 5 5 5 Final Carried 20 | 6 15 19 20 20 20 19 8 8 8 8 8 4 5 5 5 5 5 5 3 4 5 3 Class Distribution -------------------- 57% | Mutant 9% | Hacker-Sprinter 7% | Hacker-Scout 6% | Wizard-Scout 5% | Scavenger-Mutant 4% | Sprinter 4% | Scout Dominant Class ---------------- Mutant | -10/Materials Mutant | -10/Mines Mutant | -9/Materials Mutant | -9/Mines Mutant | -9/Exiles Mutant | -8/Mines Scavenger-Sprinter | -8/Materials Scout | -7/Factory Sprinter | -7/Lower Caves Sprinter | -7/Lower Caves Sprinter | -7/Data Miner Scavenger-Mutant | -6/Proximity Caves Scout | -6/Factory Hacker-Scout | -5/Factory Hacker-Sprinter | -5/Upper Caves Hacker-Sprinter | -5/Upper Caves Hacker-Sprinter | -5/Warlord Hacker-Sprinter | -4/Proximity Caves Hacker-Scout | -4/Factory Hacker-Scout | -3/Research Wizard-Scout | -2/Research Hacker-Scout | -1/Access Resources | -11 -10 -10 -9 -9 -9 -8 -8 -7 -7 -7 -7 -6 -6 -5 -5 -5 -5 -4 -4 -3 -2 -1 ----------- Run | Yrd Mat Min Mat Min Exi Min Mat Fac Low Low Dat Pro Fac Fac Upp Upp War Pro Fac Res Res Acc Matter Collected 3175 | 202 317 160 605 157 . 88 161 77 161 133 . 206 178 84 34 . 240 20 . 27 163 162 Remotely . | . . . . . . . . . . . . . . . . . . . . . . . Salvage Created 3621 | . 566 166 1029 378 . 329 12 77 57 86 . 102 210 84 . . 43 110 . 40 15 317 Parts 176 | . 33 10 47 28 . 14 . 6 . . . 9 1 2 . . 2 6 . 6 1 11 Haulers Intercepted 7 | . 2 . 4 . . . . . . . . . . 1 . . . . . . . . Recyclers Shooed 4 | . 1 . 3 . . . . . . . . . . . . . . . . . . . Parts Field Recycled . | . . . . . . . . . . . . . . . . . . . . . . . Retrieved Matter . | . . . . . . . . . . . . . . . . . . . . . . . Parts Self-Destructed 14 | . . . . . . . . . . 3 . 7 . . . . . 4 . . . . Prevented 5 | . . . . . . . . . . 5 . . . . . . . . . . . . Kills | -11 -10 -10 -9 -9 -9 -8 -8 -7 -7 -7 -7 -6 -6 -5 -5 -5 -5 -4 -4 -3 -2 -1 ------- Run | Yrd Mat Min Mat Min Exi Min Mat Fac Low Low Dat Pro Fac Fac Upp Upp War Pro Fac Res Res Acc Combat Hostiles Destroyed 75 | . 10 4 20 13 . 4 . 3 . . . 8 . . . . 1 2 . . . 10 Melee 2 | . . . . . . . . . . . . . . . . . . 2 . . . . Guns 12 | . 10 2 . . . . . . . . . . . . . . . . . . . . Cannons 27 | . . 2 16 8 . 1 . . . . . . . . . . . . . . . . AOE 31 | . . . 3 4 . 2 . 3 . . . 8 . . . . 1 . . . . 10 Classes Destroyed 15 | . 7 1 1 2 . 1 . . 1 1 . . . . . . . 1 . . . . Worker 2 | . . . . 2 . . . . . . . . . . . . . . . . . . Builder 6 | . 1 . 1 . . . . . . . . . 1 . . . . . . 1 1 1 Tunneler 3 | . . . . 1 . . . . . . . . 2 . . . . . . . . . Hauler 7 | . 2 . 4 . . . . . . . . . . 1 . . . . . . . . Recycler 5 | . 1 . 2 . . 1 . . . . . . 1 . . . . . . . . . Minesweeper 2 | . . . . . . . . . . 2 . . . . . . . . . . . . Mechanic 1 | . 1 . . . . . . . . . . . . . . . . . . . . . Operator 5 | . . . 2 . . . 1 1 . . . . . . . . . . . 1 . . Watcher 8 | . 1 . 2 . . . . 2 . . . . 2 . . . . . . . . 1 Swarmer 29 | . 3 . 3 9 . . . 3 . . . 7 . . . . . . . . . 4 Grunt 34 | . 7 2 13 4 . 3 . . . . . 1 . . . . 1 . . . . 3 Sentry 6 | . . 2 4 . . . . . . . . . . . . . . . . . . . Hunter 4 | . . . . . . 1 . . . . . . . . . . . . . . . 3 Programmer 2 | . . . . . . . . . . . . . . . . . . 2 . . . . Decomposer 1 | . . . . . . . . . . 1 . . . . . . . . . . . . Samaritan 1 | . . . . . . . . . 1 . . . . . . . . . . . . . Best Kill Streak 8 | . 5 2 4 8 . 4 1 3 . 1 . 6 4 1 . . 1 2 . 1 1 6 Combat Bots Only 6 | . 5 2 4 5 . 3 . 3 . . . 6 . . . . 1 2 . . . 5 Max Kills in Single Turn 5 | . 1 1 2 3 . 2 1 2 1 1 . 4 1 1 . . 1 1 . 1 1 5 Gunslinging . | . . . . . . . . . . . . . . . . . . . . . . . Exploded 4 | . . . 1 2 . 1 . 2 . . . 4 . . . . 1 . . . . 4 Melee 1 | . . . . . . . . . . . . . . . . . . 1 . . . . Uniques/NPCs Destroyed . | . . . . . . . . . . . . . . . . . . . . . . . Combat | -11 -10 -10 -9 -9 -9 -8 -8 -7 -7 -7 -7 -6 -6 -5 -5 -5 -5 -4 -4 -3 -2 -1 -------- Run | Yrd Mat Min Mat Min Exi Min Mat Fac Low Low Dat Pro Fac Fac Upp Upp War Pro Fac Res Res Acc Hostile Shots Fired 667 | . 51 56 75 35 . 7 2 27 2 15 . 86 4 . 2 . 11 40 4 46 . 204 Missed 322 | . 12 9 22 16 . 4 1 21 1 8 . 43 3 . . . 10 32 3 29 . 108 Damage Taken 6717 | . 489 671 708 230 . 51 15 56 17 87 . 607 109 . 44 . 22 162 24 503 22 2900 Core 2212 | . 86 71 96 53 . . . . . 18 . 80 41 . 25 . 22 40 . 51 . 1629 Absorbed by Shields . | . . . . . . . . . . . . . . . . . . . . . . . Redirected to Shielding 186 | . . . . . . . . . . . . . . . . . . . . . . 186 Ignored by Resistances 12 | . . . . . . . . . . . . . . . . . . . . 12 . . Regen/Repaired (Parts) 4 | . . . . . . . . . . . . . . . . . 4 . . . . . Core Remaining (%) 86 | 100 . 37 . . . 62 100 . . . . 86 95 . . . . 91 100 96 100 . Volleys Fired 221 | . 56 20 63 19 . 9 . 16 . . . 12 . . . . 4 . . 1 4 17 Largest 2 | . 2 2 2 2 . 2 . 1 . . . 1 . . . . 1 . . 1 1 1 Hottest 260 | . 105 80 112 112 . 112 . 36 . . . 36 . . . . 260 . . 260 260 120 Shots Fired 373 | . 111 38 125 33 . 12 . 16 . . . 12 . . . . 4 . . 1 4 17 Gun 139 | . 111 16 . . . . . 10 . . . . . . . . . . . . 2 . Cannon 183 | . . 22 125 28 . 5 . . . . . . . . . . . . . . . 3 Launcher 51 | . . . . 5 . 7 . 6 . . . 12 . . . . 4 . . 1 2 14 Special . | . . . . . . . . . . . . . . . . . . . . . . . Kinetic 156 | . 48 22 76 . . . . 10 . . . . . . . . . . . . . . Thermal 75 | . 63 . . . . . . . . . . . . . . . 4 . . 1 4 3 Explosive 32 | . . . . . . . . 6 . . . 12 . . . . . . . . . 14 Electromagnetic 110 | . . 16 49 33 . 12 . . . . . . . . . . . . . . . . Robot Hit Streak 13 | . 12 3 13 8 . 10 . 3 . . . 1 . . . . . . . . 3 9 Robot Miss Streak 10 | . 8 4 5 2 . 1 . 10 . . . 2 . . . . . . . 2 3 1 Penetration Max . | . . . . . . . . . . . . . . . . . . . . . . . Secondary Targets 3 | . 2 1 . . . . . . . . . . . . . . . . . . . . Max Gunslinging Chain 1 | . 1 1 . . . . . . . . . . . . . . . . . . . . Shots Hit Robots 241 | . 67 19 80 21 . 6 1 12 1 3 . 3 6 3 . . . 4 . 3 3 9 Core Hits 172 | . 26 8 32 15 . 9 . 11 . . . 12 . 1 . . 2 2 . 1 4 49 Critical Kills 1 | . . . . . . . . . . . . . . . . . . . . . . 1 Critical Parts Destroyed 3 | . . . . . . . . . . 1 . . 2 . . . . . . . . . Critical Strikes 5 | . . . . . . . . . . 1 . . 2 1 . . . . . . . 1 Meltdown 1 | . . . . . . . . . . . . . . . . . . . . . . 1 Smash 3 | . . . . . . . . . . 1 . . 2 . . . . . . . . . Sever 1 | . . . . . . . . . . . . . . 1 . . . . . . . . Melee Attacks 65 | . . . 6 . . . 4 9 1 4 . . 14 8 . . . 6 3 10 . . Impact 37 | . . . 6 . . . 4 9 1 4 . . 13 . . . . . . . . . Slashing 28 | . . . . . . . . . . . . . 1 8 . . . 6 3 10 . . Piercing . | . . . . . . . . . . . . . . . . . . . . . . . Sneak Attacks 11 | . . . . . . . 1 . 1 3 . . 4 1 . . . . . 1 . . Combat Hostiles . | . . . . . . . . . . . . . . . . . . . . . . . Follow-up Attacks . | . . . . . . . . . . . . . . . . . . . . . . . Damage Inflicted 10516 | . 892 294 1899 852 . 396 101 653 117 309 . 618 567 256 . . 177 235 . 242 295 2613 Guns 1177 | . 892 123 . . . . . 109 . . . . . . . . . . . . 53 . Cannons 2328 | . . 171 1601 445 . 69 . . . . . . . . . . . . . . . 42 Explosions 4956 | . . . 278 407 . 327 . 370 . . . 618 . . . . 177 . . . 242 2537 Melee 1999 | . . . . . . . 101 174 115 309 . . 567 256 . . . 235 . 242 . . Ramming 56 | . . . 20 . . . . . 2 . . . . . . . . . . . . 34 Kinetic 1458 | . 348 171 830 . . . . 109 . . . . . . . . . . . . . . Thermal 1609 | . 544 . 183 368 . . . . . . . . . . . . 177 . . . 295 42 Explosive 3600 | . . . 75 . . . . 370 . . . 618 . . . . . . . . . 2537 Electromagnetic 1794 | . . 123 791 484 . 396 . . . . . . . . . . . . . . . . Impact 1266 | . . . . . . . 101 174 115 309 . . 567 . . . . . . . . . Slashing 733 | . . . . . . . . . . . . . . 256 . . . 235 . 242 . . Piercing . | . . . . . . . . . . . . . . . . . . . . . . . Highest Corruption 7 | . . . 4 4 4 7 . 1 1 1 1 1 1 . . . . 1 . 2 . 3 Average Corruption 3 | . . . 3 4 4 4 . 1 1 1 1 1 1 . . . . 1 . 2 . 2 Corruption Purged . | . . . . . . . . . . . . . . . . . . . . . . . Corruption Blocked 2 | . . . . . . . . . . . . . . . . . . . . . 2 . Effects 91 | . . . 41 14 10 15 . . 1 . 1 8 1 . . . . . . . . . Message Errors 27 | . . . 9 5 3 8 . . . . . 1 1 . . . . . . . . . Matter Fused 25 | . . . 11 4 4 3 . . . . 1 2 . . . . . . . . . . Heat Flow Errors 9 | . . . 5 2 . . . . . . . 2 . . . . . . . . . . Energy Discharges 12 | . . . 8 . . 2 . . . . . 2 . . . . . . . . . . Parts Fused 1 | . . . . . . . . . 1 . . . . . . . . . . . . . Data Loss (minor) 6 | . . . 2 1 2 1 . . . . . . . . . . . . . . . . Data Loss (major) 3 | . . . . 2 1 . . . . . . . . . . . . . . . . . Misfires 3 | . . . 2 . . 1 . . . . . . . . . . . . . . . . Alerts 3 | . . . 2 . . . . . . . . 1 . . . . . . . . . . Weapon Failures 2 | . . . 2 . . . . . . . . . . . . . . . . . . . Overload Shots . | . . . . . . . . . . . . . . . . . . . . . . . Overflow Damage 1265 | . . . . 55 . . 91 95 114 264 . 42 430 . . . . 24 . 102 . 48 Projectiles . | . . . . . . . . . . . . . . . . . . . . . . . Explosions 163 | . . . . 55 . . . 18 . . . 42 . . . . . . . . . 48 Melee 1102 | . . . . . . . 91 77 114 264 . . 430 . . . . 24 . 102 . . Knockbacks 10 | . . . 4 . . . . 2 . 1 . . 3 . . . . . . . . . Impact 6 | . . . . . . . . 2 . 1 . . 3 . . . . . . . . . Kinetic 4 | . . . 4 . . . . . . . . . . . . . . . . . . . Secondary . | . . . . . . . . . . . . . . . . . . . . . . . Self-Inflicted Damage 330 | . . . 59 36 . . . 6 . . . 173 . . . . . . . . . 56 Shots 12 | . . . 2 3 . . . 1 . . . 5 . . . . . . . . . 1 Rammed 15 | . . . . . . . . . 2 . . . . . . . . . . . . 13 Targets Rammed 17 | . . . 2 . . . . . 2 . . . . . . . . . . . . 13 Kicked . | . . . . . . . . . . . . . . . . . . . . . . . Crushed 2 | . . . 2 . . . . . . . . . . . . . . . . . . . Highest Temperature 448 | . 330 280 278 314 . 63 . . . . . 165 306 . 5 . 448 . . 188 368 16 Average Temperature 103 | . 116 131 63 93 . 30 . . . . . 67 159 . 3 . 187 . . 93 191 12 Received Heat Transfer 990 | . 210 252 285 54 . . . 6 9 27 . 84 12 . 9 . . . . 24 . 18 Effects 10 | . 2 1 . 3 . . . . . . . . 1 . . . 3 . . . . . Shutdowns 2 | . . . . . . . . . . . . . . . . . 2 . . . . . Interference 5 | . 1 1 . 2 . . . . . . . . 1 . . . . . . . . . Matter Decay 1 | . . . . . . . . . . . . . . . . . 1 . . . . . Short Circuit 1 | . . . . 1 . . . . . . . . . . . . . . . . . . Damage (minor) 1 | . 1 . . . . . . . . . . . . . . . . . . . . . Siege Activations . | . . . . . . . . . . . . . . . . . . . . . . . Robots Corrupted 3 | . . . 1 1 . 1 . . . . . . . . . . . . . . . . Combat Hostiles 3 | . . . 1 1 . 1 . . . . . . . . . . . . . . . . Parts Fried 29 | . . 1 3 2 . 3 . 2 . 4 . . 14 . . . . . . . . . Impact Corruptions 29 | . . . . . . . 3 4 3 6 . . 13 . . . . . . . . . Robots Melted 1 | . . . . . . . . . . . . . . . . . . . . . . 1 Combat Hostiles . | . . . . . . . . . . . . . . . . . . . . . . . Parts Melted 2 | . 1 . . . . . . . . . . . . . . . . . . . . 1 Heat Transferred 2773 | . 1312 . 150 400 . . . . . . . . . . . . 320 . . . 554 37 Parts Sabotaged . | . . . . . . . . . . . . . . . . . . . . . . . Parts Stolen . | . . . . . . . . . . . . . . . . . . . . . . . Parts Stripped . | . . . . . . . . . . . . . . . . . . . . . . . Power Chain Reactions 5 | . . . 3 2 . . . . . . . . . . . . . . . . . . Alert | -11 -10 -10 -9 -9 -9 -8 -8 -7 -7 -7 -7 -6 -6 -5 -5 -5 -5 -4 -4 -3 -2 -1 ------- Run | Yrd Mat Min Mat Min Exi Min Mat Fac Low Low Dat Pro Fac Fac Upp Upp War Pro Fac Res Res Acc Peak Influence 506 | . 253 66 343 506 . 135 82 325 . . . . 250 260 . . . . 76 154 141 485 Initial 122 | . . . 12 109 . . . 37 . . . . 48 122 . . . . 40 39 89 . Average 116 | . 79 41 107 280 . 70 33 154 . . . . 146 164 . . . . 46 90 81 228 Maximum Alert Level 2 | . 1 . 1 2 . . . 1 . . . . 1 1 . . . . . . . 2 Low Security (%) 78 | 100 91 100 78 18 . 100 100 62 . . . . 65 91 . . . . 100 100 100 45 Level 1 19 | . 8 . 21 76 . . . 37 . . . . 34 8 . . . . . . . 28 Level 2 1 | . . . . 5 . . . . . . . . . . . . . . . . . 26 Level 3 . | . . . . . . . . . . . . . . . . . . . . . . . Level 4 . | . . . . . . . . . . . . . . . . . . . . . . . Level 5 . | . . . . . . . . . . . . . . . . . . . . . . . High Security . | . . . . . . . . . . . . . . . . . . . . . . . Max Security . | . . . . . . . . . . . . . . . . . . . . . . . Squads Dispatched 30 | . 2 . 5 . . . . 6 . . . . 2 5 . . . 1 . 3 2 4 Investigation 17 | . 1 . 3 . . . . 5 . . . . 2 2 . . . . . 1 2 1 Extermination 1 | . . . . . . . . . . . . . . . . . . . . . . 1 Reinforcement 11 | . 1 . 2 . . . . 1 . . . . . 3 . . . . . 2 . 2 Assault 1 | . . . . . . . . . . . . . . . . . . 1 . . . . Garrison . | . . . . . . . . . . . . . . . . . . . . . . . Intercept . | . . . . . . . . . . . . . . . . . . . . . . . Searches Triggered . | . . . . . . . . . . . . . . . . . . . . . . . Construction Impeded 1 | . . . . . . . . . . . . . . . . . . . . 1 . . Haulers Reinforced . | . . . . . . . . . . . . . . . . . . . . . . . Active Scanning Responses . | . . . . . . . . . . . . . . . . . . . . . . . Cargo Convoy Interrupts . | . . . . . . . . . . . . . . . . . . . . . . . Stealth | -11 -10 -10 -9 -9 -9 -8 -8 -7 -7 -7 -7 -6 -6 -5 -5 -5 -5 -4 -4 -3 -2 -1 --------- Run | Yrd Mat Min Mat Min Exi Min Mat Fac Low Low Dat Pro Fac Fac Upp Upp War Pro Fac Res Res Acc Distress Signals 13 | . 2 . 4 . . . 1 . . . . . . . . . 1 1 . . 3 1 Communications Jammed . | . . . . . . . . . . . . . . . . . . . . . . . Distress Signals . | . . . . . . . . . . . . . . . . . . . . . . . Times Spotted 257 | . 19 9 25 14 . 6 6 13 3 11 . 13 11 8 1 . 43 14 2 21 5 33 Peak Tracking Total 15 | . 6 10 3 4 . 4 5 4 3 5 . 4 8 7 1 . 9 10 3 15 4 13 Tactical Retreats 20 | . . 1 1 . . 1 . 1 . 3 . 1 2 . . . 1 1 . 2 . 6 Traps | -11 -10 -10 -9 -9 -9 -8 -8 -7 -7 -7 -7 -6 -6 -5 -5 -5 -5 -4 -4 -3 -2 -1 ------- Run | Yrd Mat Min Mat Min Exi Min Mat Fac Low Low Dat Pro Fac Fac Upp Upp War Pro Fac Res Res Acc Traps Triggered 8 | . 3 . 3 . . . . . . . . . 1 . . . . . . . . 1 Indirectly . | . . . . . . . . . . . . . . . . . . . . . . . Trap Hack Attempts . | . . . . . . . . . . . . . . . . . . . . . . . Triggered . | . . . . . . . . . . . . . . . . . . . . . . . Disarmed . | . . . . . . . . . . . . . . . . . . . . . . . Reprogrammed . | . . . . . . . . . . . . . . . . . . . . . . . Reused 2 | . . . . . . . . . . 2 . . . . . . . . . . . . Traps Extracted . | . . . . . . . . . . . . . . . . . . . . . . . Installed 3 | . . . . . . . . . . 3 . . . . . . . . . . . . Triggered 16 | . . . . . . . . . . 4 . . . . . . 12 . . . . . Machines | -11 -10 -10 -9 -9 -9 -8 -8 -7 -7 -7 -7 -6 -6 -5 -5 -5 -5 -4 -4 -3 -2 -1 ---------- Run | Yrd Mat Min Mat Min Exi Min Mat Fac Low Low Dat Pro Fac Fac Upp Upp War Pro Fac Res Res Acc Machines Disabled 13 | . 2 . 6 4 . . . . . . . . . . . . 1 . . . . . Max in Single Turn 3 | . 1 . 2 3 . . . . . . . . . . . . 1 . . . . . Garrison Access 1 | . . . . . . . . . . . . . . . . . . . . . 1 . Machines Repaired . | . . . . . . . . . . . . . . . . . . . . . . . Machines Dismantled . | . . . . . . . . . . . . . . . . . . . . . . . Machines Sabotaged . | . . . . . . . . . . . . . . . . . . . . . . . Overloaded Fab Kills . | . . . . . . . . . . . . . . . . . . . . . . . Hacking | -11 -10 -10 -9 -9 -9 -8 -8 -7 -7 -7 -7 -6 -6 -5 -5 -5 -5 -4 -4 -3 -2 -1 --------- Run | Yrd Mat Min Mat Min Exi Min Mat Fac Low Low Dat Pro Fac Fac Upp Upp War Pro Fac Res Res Acc Machines Accessed 55 | . 7 . 9 1 2 . 2 6 . 1 4 . 6 5 1 . 4 . 2 2 1 2 Terminals 35 | . 7 . 8 . . . 2 5 . . . . 3 4 1 . . . 2 1 . 2 Fabricators 4 | . . . . . . . . 1 . . . . 1 . . . . . . 1 1 . Repair Stations . | . . . . . . . . . . . . . . . . . . . . . . . Recycling Units 1 | . . . . . . . . . . . . . 1 . . . . . . . . . Scanalyzers 3 | . . . 1 . . . . . . . . . 1 1 . . . . . . . . Garrison Access . | . . . . . . . . . . . . . . . . . . . . . . . Total Hacks 174 | . 15 . 31 1 5 . 4 17 . 1 30 . 18 13 1 . 9 . 6 10 5 8 Successful 109 | . 2 . 16 1 5 . 2 5 . 1 30 . 10 7 1 . 9 . 4 7 3 6 Failed 64 | . 13 . 14 . . . 2 12 . . . . 8 6 . . . . 2 3 2 2 Catastrophic 16 | . 4 . . . . . 1 6 . . . . 3 1 . . . . . 1 . . Database Lockouts 1 | . . . 1 . . . . . . . . . . . . . . . . . . . Manual 68 | . 14 . 19 . 1 . 1 9 . . . . 7 2 . . 2 . 2 7 . 4 Terminals 99 | . 15 . 25 . . . 4 14 . . . . 10 9 1 . . . 6 7 . 8 Fabricators 14 | . . . . . . . . 3 . . . . 3 . . . . . . 3 5 . Repair Stations . | . . . . . . . . . . . . . . . . . . . . . . . Recycling Units 1 | . . . . . . . . . . . . . 1 . . . . . . . . . Scanalyzers 14 | . . . 6 . . . . . . . . . 4 4 . . . . . . . . Garrison Access . | . . . . . . . . . . . . . . . . . . . . . . . Terminal Hacks 72 | . 2 . 6 1 5 . 1 1 . 1 30 . 1 2 1 . 9 . 4 3 . 5 Record 24 | . . . . . 4 . . . . . 11 . 1 . 1 . 2 . 2 . . 3 Part Schematic 13 | . 2 . . . . . . . . . 10 . . . . . . . . 1 . . Robot Schematic 6 | . . . . . . . . . . . 6 . . . . . . . . . . . Robot Analysis 6 | . . . 3 . . . 1 1 . . . . . 1 . . . . . . . . Prototype ID Bank 8 | . . . . . . . . . . . 3 . . . . . 5 . . . . . Open Door 4 | . . . . 1 . . . . . 1 . . . . . . 2 . . . . . Level Access Points 3 | . . . . . . . . . . . . . . . . . . . 1 1 . 1 Branch Access Points 2 | . . . . . . . . . . . . . . 1 . . . . 1 . . . Machine Index 1 | . . . . . . . . . . . . . . . . . . . . . . 1 Fabricator Index 1 | . . . . . . . . . . . . . . . . . . . . 1 . . Unreport Threat 1 | . . . 1 . . . . . . . . . . . . . . . . . . . Hauler Manifests 2 | . . . 2 . . . . . . . . . . . . . . . . . . . Derelict Proto ID Bank 1 | . . . . . 1 . . . . . . . . . . . . . . . . . Fabricator Hacks 9 | . . . . . . . . 2 . . . . 1 . . . . . . 3 3 . Network Status 2 | . . . . . . . . . . . . . . . . . . . . 1 1 . Load Schematic 4 | . . . . . . . . 1 . . . . 1 . . . . . . 1 1 . Build 3 | . . . . . . . . 1 . . . . . . . . . . . 1 1 . Repair Station Hacks . | . . . . . . . . . . . . . . . . . . . . . . . Recycling Unit Hacks 1 | . . . . . . . . . . . . . 1 . . . . . . . . . Report Inventory 1 | . . . . . . . . . . . . . 1 . . . . . . . . . Scanalyzer 14 | . . . 6 . . . . . . . . . 4 4 . . . . . . . . Insert Component 7 | . . . 3 . . . . . . . . . 2 2 . . . . . . . . Analyze 7 | . . . 3 . . . . . . . . . 2 2 . . . . . . . . Garrison Access Hacks . | . . . . . . . . . . . . . . . . . . . . . . . Unauthorized Hacks 13 | . . . 4 . . . 1 2 . . . . 3 1 . . . . . 1 . 1 Terminals 13 | . . . 4 . . . 1 2 . . . . 3 1 . . . . . 1 . 1 Botnet 13 | . . . 4 . . . 1 2 . . . . 3 1 . . . . . 1 . 1 Fabricators . | . . . . . . . . . . . . . . . . . . . . . . . Repair Stations . | . . . . . . . . . . . . . . . . . . . . . . . Recycling Units . | . . . . . . . . . . . . . . . . . . . . . . . Scanalyzers . | . . . . . . . . . . . . . . . . . . . . . . . Garrison Access . | . . . . . . . . . . . . . . . . . . . . . . . Data Cores Recovered 3 | . . . . . . . 1 1 . . . . . . . . . . . 1 . . Used 2 | . . . . . . . . 1 . . . . . . . . . . . 1 . . Hacking Detections 39 | . 7 . 8 . . . 2 6 . . . . 5 4 . . . . 2 2 1 2 Full Trace Events 16 | . 1 . 4 . . . . 5 . . . . 2 2 . . . . . 1 1 . Feedback Events 2 | . . . 1 . . . . 1 . . . . . . . . . . . . . . Corruption 2 | . . . 1 . . . . 1 . . . . . . . . . . . . . . Feedback Blocked . | . . . . . . . . . . . . . . . . . . . . . . . Robot Schematics Acquired 6 | . . . . . . . . . . . 6 . . . . . . . . . . . Robots Built . | . . . . . . . . . . . . . . . . . . . . . . . Authchips . | . . . . . . . . . . . . . . . . . . . . . . . Time . | . . . . . . . . . . . . . . . . . . . . . . . Total Robot Build Rating . | . . . . . . . . . . . . . . . . . . . . . . . Part Schematics Acquired 19 | . 2 . 2 . . . . . . . 10 . 2 2 . . . . . 1 . . Parts Built 2 | . . . . . . . . 1 . . . . . . . . . . . . 1 . Authchips . | . . . . . . . . . . . . . . . . . . . . . . . Time 329 | . . . . . . . . 49 . . . . . . . . . . . 187 93 . Total Part Build Rating 9 | . . . . . . . . 2 . . . . . . . . . . . . 7 . Parts Repaired . | . . . . . . . . . . . . . . . . . . . . . . . Time . | . . . . . . . . . . . . . . . . . . . . . . . Parts Recycled . | . . . . . . . . . . . . . . . . . . . . . . . Recycled Matter . | . . . . . . . . . . . . . . . . . . . . . . . Retrieved Matter . | . . . . . . . . . . . . . . . . . . . . . . . Retrieved Components . | . . . . . . . . . . . . . . . . . . . . . . . Parts Scanalyzed 7 | . . . 3 . . . . . . . . . 2 2 . . . . . . . . Part Schematics Acquired 6 | . . . 2 . . . . . . . . . 2 2 . . . . . . . . Parts Damaged 1 | . . . . . . . . . . . . . . 1 . . . . . . . . Bothacking | -11 -10 -10 -9 -9 -9 -8 -8 -7 -7 -7 -7 -6 -6 -5 -5 -5 -5 -4 -4 -3 -2 -1 ------------ Run | Yrd Mat Min Mat Min Exi Min Mat Fac Low Low Dat Pro Fac Fac Upp Upp War Pro Fac Res Res Acc Used RIF Installer . | . . . . . . . . . . . . . . . . . . . . . . . Robots Hacked . | . . . . . . . . . . . . . . . . . . . . . . . Non-combat . | . . . . . . . . . . . . . . . . . . . . . . . Combat . | . . . . . . . . . . . . . . . . . . . . . . . Robot Hacks Applied . | . . . . . . . . . . . . . . . . . . . . . . . Relay Couplers Released 3 | . . . . . . . . . . . . . . . . . . . . . 3 . Machine Destruction 3 | . . . . . . . . . . . . . . . . . . . . . 3 . Fabnet Peak Effective % . | . . . . . . . . . . . . . . . . . . . . . . . Robots Rewired . | . . . . . . . . . . . . . . . . . . . . . . . Allies Hacked . | . . . . . . . . . . . . . . . . . . . . . . . Hacks Repelled . | . . . . . . . . . . . . . . . . . . . . . . . Allies | -11 -10 -10 -9 -9 -9 -8 -8 -7 -7 -7 -7 -6 -6 -5 -5 -5 -5 -4 -4 -3 -2 -1 -------- Run | Yrd Mat Min Mat Min Exi Min Mat Fac Low Low Dat Pro Fac Fac Upp Upp War Pro Fac Res Res Acc Total Allies 2 | . . 1 . . . . . . . . . 1 . . . . . . . . . . Largest Group 1 | . . 1 . . . . . . . . . 1 . . . . . . . . . . Highest-Rated Group 96 | . . 31 . . . . . . . . . 96 . . . . . . . . . . Highest-Rated Ally 96 | . . 31 . . . . . . . . . 96 . . . . . . . . . . Total Orders . | . . . . . . . . . . . . . . . . . . . . . . . Ally Attacks 17 | . . 5 . . . . . . . . . 12 . . . . . . . . . . Total Damage 504 | . . 83 . . . . . . . . . 421 . . . . . . . . . . Kills 6 | . . 3 . . . . . . . . . 3 . . . . . . . . . . Allies Corrupted . | . . . . . . . . . . . . . . . . . . . . . . . Allies Melted . | . . . . . . . . . . . . . . . . . . . . . . . Intel | -11 -10 -10 -9 -9 -9 -8 -8 -7 -7 -7 -7 -6 -6 -5 -5 -5 -5 -4 -4 -3 -2 -1 ------- Run | Yrd Mat Min Mat Min Exi Min Mat Fac Low Low Dat Pro Fac Fac Upp Upp War Pro Fac Res Res Acc Robot Analysis Total 6 | . . . 3 . . . 1 1 . . . . . 1 . . . . . . . . Derelict Logs Recovered 7 | . . . . 2 . . . . 1 1 . 1 . . . 1 . 1 . . . . Drone Launches . | . . . . . . . . . . . . . . . . . . . . . . . Drone Recoveries . | . . . . . . . . . . . . . . . . . . . . . . . Exploration | -11 -10 -10 -9 -9 -9 -8 -8 -7 -7 -7 -7 -6 -6 -5 -5 -5 -5 -4 -4 -3 -2 -1 ------------- Run | Yrd Mat Min Mat Min Exi Min Mat Fac Low Low Dat Pro Fac Fac Upp Upp War Pro Fac Res Res Acc Turns Passed 9390 | 3 840 616 2196 634 544 601 130 308 62 246 29 601 299 209 146 60 611 145 56 132 640 282 Spaces Moved 10189 | 2 525 259 1256 375 358 373 260 709 179 705 97 610 577 329 420 188 989 409 123 260 637 549 Core 77 | . . . . . . . . . . . . . . . . . . . . . . 77 Treads 2547 | . . 185 1256 375 358 373 . . . . . . . . . . . . . . . . Legs 205 | 2 203 . . . . . . . . . . . . . . . . . . . . . Wheels 396 | . 322 74 . . . . . . . . . . . . . . . . . . . . Hover . | . . . . . . . . . . . . . . . . . . . . . . . Flight 6964 | . . . . . . . 260 709 179 705 97 610 577 329 420 188 989 409 123 260 637 472 Fastest Speed 28 | 120 115 115 145 150 150 150 31 28 28 28 28 28 29 29 29 29 28 28 32 29 29 29 Average Speed 68 | 120 116 207 148 150 150 150 31 28 28 28 28 64 32 35 29 29 28 30 32 31 29 32 Slowest Speed 240 | 120 120 240 160 150 150 225 31 98 28 28 28 101 39 39 29 29 32 32 32 34 29 106 Overloaded Moves . | . . . . . . . . . . . . . . . . . . . . . . . Propulsion Burnouts . | . . . . . . . . . . . . . . . . . . . . . . . Robots Hopped 24 | . . . . . . . 2 6 . 1 . . . 4 . . . 1 . 2 4 4 Cave-ins Triggered . | . . . . . . . . . . . . . . . . . . . . . . . Exploration Rate (%) 49 | 2 93 63 81 91 79 85 26 19 37 79 74 64 17 12 60 46 84 76 6 10 14 17 Regions Visited 22 Branch Regions 12 Pre-discovered Areas 4 | . . . . 1 1 . . . . . 1 . . . . 1 . . . . . . Known Exits Taken 13 | . . . . . . . 1 1 1 . . 1 1 1 1 1 1 1 1 1 1 . Unknown Exits Taken 9 | 1 1 1 1 1 1 1 . . . 1 1 . . . . . . . . . . . Scrap Searched 18 | . . 2 . 2 . 1 . . 2 2 . 3 . . 2 1 . 3 . . . . Spaces Dug 57 | . . . 5 . . . 3 5 . 1 . . 3 5 . . . 1 3 7 . 24 Terrain Destroyed 287 | . . . 29 22 . . 3 17 . 1 . 77 3 5 . . 1 1 3 12 4 109 Melee 33 | . . . 5 . . . 3 5 . 1 . . 3 5 . . . 1 3 7 . . Projectile 2 | . . . . . . . . . . . . . . . . . . . . . . 2 AOE 252 | . . . 24 22 . . . 12 . . . 77 . . . . 1 . . 5 4 107 Terrain Rammed . | . . . . . . . . . . . . . . . . . . . . . . . Walls Destroyed . | . . . . . . . . . . . . . . . . . . . . . . . Machines Disabled . | . . . . . . . . . . . . . . . . . . . . . . . Actions | -11 -10 -10 -9 -9 -9 -8 -8 -7 -7 -7 -7 -6 -6 -5 -5 -5 -5 -4 -4 -3 -2 -1 --------- Run | Yrd Mat Min Mat Min Exi Min Mat Fac Low Low Dat Pro Fac Fac Upp Upp War Pro Fac Res Res Acc Total 12041 | 2 638 299 1457 413 364 400 298 772 183 745 98 803 671 403 443 192 1318 416 132 286 1082 626 Wait 1199 | . 16 . 56 7 . 7 8 24 . 32 . 165 55 61 22 5 279 . 5 12 417 28 Move 10121 | 1 524 258 1255 374 357 372 255 696 178 702 96 609 576 320 419 187 988 406 122 256 628 542 Hop 22 | . . . . . . . 2 6 . 1 . . . 4 . . . 1 . 1 4 3 Pick Up 80 | . 13 8 21 3 . 2 6 4 1 . . . 3 2 1 . 7 1 . . 5 3 Fast Attach 54 | . 6 1 2 1 1 2 . 1 . . 1 2 8 1 . . 11 . . 4 7 6 Attach 43 | . 3 4 5 . . . 2 2 . . . 7 2 2 . . 5 1 2 1 3 4 Detach 23 | . 1 . 2 . . . . . . . . 3 4 2 . . 4 . . 1 3 3 Swap 92 | 1 9 4 19 5 2 6 13 10 1 2 . 5 2 . . . 2 1 . . 5 5 Drop 98 | . 10 4 26 4 1 2 8 4 . 1 1 . 7 3 1 . 18 . . . 6 2 Fire 221 | . 56 20 63 19 . 9 . 16 . . . 12 . . . . 4 . . 1 4 17 Melee 65 | . . . 6 . . . 4 9 1 4 . . 14 8 . . . 6 3 10 . . Ram 15 | . . . . . . . . . 2 . . . . . . . . . . . . 13 Kick . | . . . . . . . . . . . . . . . . . . . . . . . Crush 2 | . . . 2 . . . . . . . . . . . . . . . . . . . Escape Stasis . | . . . . . . . . . . . . . . . . . . . . . . . Rewire 3 | . . . . . 3 . . . . . . . . . . . . . . . . . Trap 3 | . . . . . . . . . . 3 . . . . . . . . . . . . Miscellaneous . | . . . . . . . . . . . . . . . . . . . . . . . Route ------- -11/Scrapyard -10/Materials (discovered 5 exits: *Mat x3 / [*Min x2]) -10/Mines (discovered 2 exits: *Mat x2) -9/Materials (discovered 4 exits: *Mat x3 / *Min) -9/Mines (discovered 3 exits: *Mat x2 / *Exi) -9/Exiles (discovered 2 exits: [*Min x2]) -8/Mines -8/Materials -7/Factory -7/Lower Caves -7/Lower Caves (discovered 2 exits: Fac / *Dat) -7/Data Miner -6/Proximity Caves -6/Factory (discovered 2 exits: *Fac / *Low) -5/Factory (discovered 2 exits: *Upp x2) -5/Upper Caves -5/Upper Caves -5/Warlord -4/Proximity Caves -4/Factory (discovered 7 exits: *Res x4 / Upp x2 / Arm) -3/Research (discovered 3 exits: *Res x3) -2/Research -1/Access (discovered 1 exit: Sur) History --------- Turn | Location | Event 3 | -11/Scrapyard | Discovered new exit (range 1) 4 | -11/Scrapyard | Entered Materials 73 | -10/Materials | Discovered new exit (range 7) 98 | -10/Materials | Discovered new exit (range 5) 312 | -10/Materials | Build established: Mutant 404 | -10/Materials | Discovered new exit (range 10) 429 | -10/Materials | Discovered new exit (range 12) 511 | -10/Materials | Discovered new exit (range 3) 844 | -10/Materials | Entered Mines 924 | -10/Mines | Discovered new exit (range 11) 969 | -10/Mines | Core integrity fell below 50% 1026 | -10/Mines | Lost 3 parts (1n2w) 1114 | -10/Mines | Received a Mining Laser from a helpful Derelict 1317 | -10/Mines | Assembled infested the area 1322 | -10/Mines | Assisted by a Guerilla fighting off Assembled 1433 | -10/Mines | Discovered new exit (range 11) 1460 | -10/Mines | Entered Materials 1460 | -9/Materials | Evolved 2 slots: Propulsion x1, Utility x1 1643 | -9/Materials | Discovered new exit (range 4) 2465 | -9/Materials | Central database locked down 2534 | -9/Materials | Discovered new exit (range 7) 3034 | -9/Materials | Discovered new exit (range 7) 3535 | -9/Materials | Discovered new exit (range 3) 3656 | -9/Materials | Entered Mines 3729 | -9/Mines | Learned location of Storage (-7) 3737 | -9/Mines | Met a Derelict bent on vengeance 3885 | -9/Mines | Learned Materials trap positions 3949 | -9/Mines | Found the Drone Emporium 4029 | -9/Mines | Received a Rocket Launcher from a helpful Derelict 4039 | -9/Mines | Discovered new exit (range 2) 4047 | -9/Mines | Learned location of 1 exit from Materials 4103 | -9/Mines | Discovered new exit (range 15) 4157 | -9/Mines | Deemed a non-threat by the Exiles lab entrance 4157 | -9/Mines | Discovered new exit (range 5) 4290 | -9/Mines | Entered Exiles 4313 | -9/Exiles | Discovered new exit (range 15) 4337 | -9/Exiles | Met 8R-AWN 4361 | -9/Exiles | Met EX-HEX 4466 | -9/Exiles | Met EX-DEC 4496 | -9/Exiles | Visited The Gauntlet 4588 | -9/Exiles | Learned location of Zion (-6) 4621 | -9/Exiles | Met EX-BIN 4642 | -9/Exiles | Aligned with FarCom system 4643 | -9/Exiles | Given EX-Vault access code 4678 | -9/Exiles | Opened EX-Vault 4688 | -9/Exiles | Found Gui. Plasma Cannon 4723 | -9/Exiles | Warned to stay clear of 0b10 Research branches 4819 | -9/Exiles | Discovered new exit (range 12) 4834 | -9/Exiles | Left Exiles lab with Gui. Plasma Cannon 4834 | -9/Exiles | Entered Mines 5275 | -8/Mines | Discovered new exit (range 4) 5435 | -8/Mines | Entered Materials 5435 | -8/Materials | Evolved 2 slots: Propulsion x1, Utility x1 5436 | -8/Materials | Identified exit to Factory 5437 | -8/Materials | Loaded intel: 14 trap records 5565 | -8/Materials | Entered Factory 5565 | -7/Factory | Evolved 2 slots: Propulsion x1, Utility x1 5837 | -7/Factory | Fabricated Imp. Flight Unit? 5848 | -7/Factory | Discovered new exit (range 10) 5852 | -7/Factory | Identified exit to Lower Caves 5873 | -7/Factory | Entered Lower Caves 5893 | -7/Lower Caves | Identified exit to Lower Caves 5935 | -7/Lower Caves | Entered another Lower Caves area 5936 | -7/Lower Caves | Spotted B-75 Beast 5940 | -7/Lower Caves | Encountered a Warlord checkpoint 6032 | -7/Lower Caves | Identified exit to Factory 6179 | -7/Lower Caves | Discovered new exit (range 7) 6181 | -7/Lower Caves | Entered Data Miner 6181 | -7/Data Miner | Discovered new exit (range 6) 6187 | -7/Data Miner | Met Data Miner 6196 | -7/Data Miner | Learned location of Section 7 (-2) 6196 | -7/Data Miner | Acquired the access code to Warlord's prototype stash 6202 | -7/Data Miner | Received God Mode back door access code from Data Miner 6204 | -7/Data Miner | Build established: Sprinter 6210 | -7/Data Miner | Entered Proximity Caves 6258 | -6/Proximity Caves | Attracted the attention of an 0b10 checkpoint 6273 | -6/Proximity Caves | Escorted by Enhanced Grunt 6302 | -6/Proximity Caves | Lost 4 parts (1p2n1u) 6455 | -6/Proximity Caves | Received a Behemoth hack from an annoying Tinkerer 6599 | -6/Proximity Caves | Discovered exit to Factory (range 10) 6613 | -6/Proximity Caves | Build established: Scavenger-Mutant 6672 | -6/Proximity Caves | Learned Factory terminal intel 6779 | -6/Proximity Caves | Spotted B-75 Beast 6811 | -6/Proximity Caves | Entered Factory 6811 | -6/Factory | Evolved 2 slots: Power x1, Utility x1 6812 | -6/Factory | Loaded intel: 28 terminal locations 7085 | -6/Factory | Discovered new exit (range 16) 7103 | -6/Factory | Identified exit to Lower Caves 7106 | -6/Factory | Discovered new exit (range 11) 7109 | -6/Factory | Identified exit to Factory 7110 | -6/Factory | Entered another Factory area 7110 | -5/Factory | Evolved 2 slots: Utility x2 7178 | -5/Factory | Identified exit to Upper Caves 7319 | -5/Factory | Entered Upper Caves 7412 | -5/Upper Caves | Encountered a Warlord checkpoint 7418 | -5/Upper Caves | Attracted the attention of an 0b10 checkpoint 7461 | -5/Upper Caves | Discovered new exit (range 12) 7464 | -5/Upper Caves | Identified exit to Upper Caves 7465 | -5/Upper Caves | Entered another Upper Caves area 7475 | -5/Upper Caves | Lost 3 allies 7483 | -5/Upper Caves | Learned location of Warlord (-5) 7522 | -5/Upper Caves | Discovered new exit (range 11) 7524 | -5/Upper Caves | Identified exit to Warlord 7525 | -5/Upper Caves | Entered Warlord 7533 | -5/Warlord | Discovered new exit (range 14) 7554 | -5/Warlord | Received a Watcher feed algorithm from an ecstatic Tinkerer 7594 | -5/Warlord | Visited the Vortex Lab 7597 | -5/Warlord | Found Prototype Launcher 7597 | -5/Warlord | Identified Vortex Catalyst Activator 7600 | -5/Warlord | Found Prototype Energy Cannon 7600 | -5/Warlord | Identified Vortex Cannon 7603 | -5/Warlord | Found Prototype Energy Gun 7603 | -5/Warlord | Identified Vortex Rail 7616 | -5/Warlord | Warlord's base attacked by MAIN.C 7627 | -5/Warlord | Build established: Hacker-Sprinter 7632 | -5/Warlord | Met Warlord 7636 | -5/Warlord | Opened Warlord's prototype stash 7644 | -5/Warlord | Found Prototype Hackware 7644 | -5/Warlord | Identified Ghost Barrier 7646 | -5/Warlord | Found Prototype Processor 7647 | -5/Warlord | Identified Exp. Armor Integrity Analyzer 7649 | -5/Warlord | Found Prototype Device 7649 | -5/Warlord | Identified Thermal Barrier 7654 | -5/Warlord | Found Prototype Device 7654 | -5/Warlord | Identified Exp. Phase Shifter 7966 | -5/Warlord | Warlord forces counterattacked 7991 | -5/Warlord | Opened side exit 8002 | -5/Warlord | Spotted B-86 Titan 8055 | -5/Warlord | Lost 4 allies 8114 | -5/Warlord | Lost 3 allies 8119 | -5/Warlord | Spotted Striker 8135 | -5/Warlord | Identified exit to Proximity Caves 8136 | -5/Warlord | Entered Proximity Caves 8140 | -4/Proximity Caves | Learned Research emergency access door positions 8165 | -4/Proximity Caves | Spotted B-86 Titan 8166 | -4/Proximity Caves | Lost 4 allies 8247 | -4/Proximity Caves | Attracted the attention of an 0b10 outpost 8253 | -4/Proximity Caves | Attracted the attention of an 0b10 checkpoint 8277 | -4/Proximity Caves | Discovered new exit (range 13) 8281 | -4/Proximity Caves | Identified exit to Factory 8281 | -4/Proximity Caves | Entered Factory 8281 | -4/Factory | Evolved 2 slots: Utility x2 8288 | -4/Factory | Identified exit to Upper Caves 8288 | -4/Factory | Identified exit to Armory 8307 | -4/Factory | Identified exit to Research 8337 | -4/Factory | Entered Research 8337 | -3/Research | Evolved 2 slots: Utility x2 8348 | -3/Research | Identified exit to Research 8469 | -3/Research | Entered another Research area 8469 | -2/Research | Warlord forces began assault on 0b10 8469 | -2/Research | Evolved 2 slots: Propulsion x1, Utility x1 8474 | -2/Research | Discovered new exit (range 4) 8475 | -2/Research | Identified exit to Access 8526 | -2/Research | Lost 5 parts (2p1n1u1w) 8539 | -2/Research | Lost 3 allies 8569 | -2/Research | Build established: Hacker-Scout 8579 | -2/Research | Research machine network offline 8644 | -2/Research | Fabricated Exp. Hacking Suite (x1) 8683 | -2/Research | Met up with Warlord 8928 | -2/Research | Build established: Wizard-Scout 9107 | -2/Research | Warlord destroyed during the assault 9109 | -2/Research | Entered Access 9109 | -1/Access | Evolved 2 slots: Utility x2 9179 | -1/Access | Identified exit to Surface 9194 | -1/Access | Lost 4 allies 9250 | -1/Access | Spotted B-99 Colossus 9339 | -1/Access | Core integrity fell below 50% 9360 | -1/Access | Lost 19 parts (2p3n11u3w) 9368 | -1/Access | Core integrity fell below 20% 9391 | -1/Access | Destroyed by C-57 Dissector with Dual-blade Saw Last Messages --------------- 09337_ Imp. Signal Interpreter severed. 09338_ Ghost Barrier severed. 09340_ Slammed into W-44 Eye. 09344_ W-44 Eye suffers critical hit (Meltdown). 09344_ Antigrav System melted. 09344_ Enh. Nova Cannon severed. 09346_ Slammed into C-57 Dissector. 09347_ Acquired 50 matter. 09347_ Slammed into C-57 Dissector. 09347_ Enh. Optical Array severed. 09348_ Slammed into C-57 Dissector. 09348_ Machine Analyzer broken. 09348_ Destabilizing: Short circuit. 09349_ Broken Machine Analyzer severed. 09349_ Slammed into C-57 Dissector. 09359_ ALERT: Rogue bot located, Programmers report to Access Zone 3Z. 09359_ K-01 Serf cleans the Fabricator. 09384_ Slammed into P-80 Master. 09390_ Acquired Hvy. Gauss Cannon. Map ----- +----------------------------------------------------+ | # ##??????????????????????????????? | | # # # ##??????????????????????????????? | | ##??????????????????????????????? | | # ####?????????????????????????????? | | # ##?????????????????????????????? | | # ##### ######?????????????????????????????? | | # # #############?????????????????????????????? | | ######?######?????????????????????????????????? | | ##### ????????????????????????????????????????? | | #####????????????????????????????????????????????? | | ##### ???????????????????????????????????????????? | | ##### ??"????????????????????????????????????????? | | # ?"""???????????????????????????????????????? | | # ??"""??????????????????????????????????????? | | =# ???"??????????#####??????????h?????????????? | | # ??????????????# ?????? #????????????????? | | # ??????????????# ?????? #????????????????? | | ##??????????????# ""??? #????????????????? | | = ##??????????????# """"" #????????????????? | | ##??????????????+ """"" #????????????????? | | ##??????????????# """"" #???BB???????????? | | ##??????????????# """"" #???BB???????????? | | ##??????????????# #????????????????? | | # ??????????????# #????????????????? | | ##### ??????????????# #????????????????? | | ##### ??????????????# @ ! #########????????? | | ????????????????????# c ## #????????? | | ????????????????????# ## #????????? | | ????????????????????#######+###### #????????? | | ??????????????????????????# ###### #????????? | | ??????????????????????????# c + #????????? | | ??????????????????????????######## #????????? | | ??????????????g??????????????????#p #????????? | | ??????????????g??????????????????# #????????? | | ?????????????g???????????????????# #????????? | | ??????????????gg?????????????????#pp #????????? | | ???????????????"?????????????????# #????????? | | ?????????????"""?????????????????# #????????? | | ???????????????G?????????????????# #????????? | | ?????????????"""???##################+### #???? | | ###### ????????"???# #???? | | ###### ????????????# #???? | | ! # ????????????# #+################# #???? | | # ????????????# # ?????????????????## #???? | | "" # ????????????# # ????????????????????#???? | | F"" # ?????# # ???????????????????????? | | "" #+##/########## # ???????????????????????? | | / # ""??????????????????????? | | # # ""??????????????????????? | | ## ######## "?????????????????????? | +----------------------------------------------------+ Best States ------------- Heat Dissipation 85 Energy Generation 34 Energy Capacity 390 Matter Stores 300 Matter Capacity 300 Sight Range 22 Terrain Scan Density 10 ECM Strength 2 Additional Mass Support 12 Armor Coverage 150 Resistance: TH 50 Propulsion Shielding 66 Phase Shifting 20 Evasion (%) 94 Targeting Accuracy 6 Core Analysis 6 Recoil Reduction 3 Offensive Hacking 48 Defensive Hacking 20 Item Schematics ----------------- Huge Storage Unit | -10/Materials | Hacked Cargo Storage Unit | -10/Materials | Hacked Imp. Flight Unit | -9/Materials | Scanalyzed Machine Analyzer | -9/Materials | Scanalyzed Combat Drone Bay | -7/Data Miner | Free Lgt. Regenerative Plating | -7/Data Miner | Free Biomechanical Wings | -7/Data Miner | Free Gravity Neutralizer | -7/Data Miner | Free Prc. Rocket Launcher | -7/Data Miner | Free Field Propulsion Drive | -7/Data Miner | Free Imp. Coolant Injector | -7/Data Miner | Free Tesla Rifle | -7/Data Miner | Free Hvy. Plasma Cannon | -7/Data Miner | Free Adv. Cooling System | -7/Data Miner | Free Imp. Grenade Launcher | -6/Factory | Scanalyzed Imp. Signal Interpreter | -6/Factory | Scanalyzed Adv. Terrain Scan Processor | -5/Factory | Scanalyzed Enh. Optical Array | -5/Factory | Scanalyzed Exp. Hacking Suite | -3/Research | Hacked Robot Schematics ------------------ L-41 Fighter | -7/Data Miner | Free Y-54 Guardian | -7/Data Miner | Free D-53 Grenadier | -7/Data Miner | Free B-48 Gladiator | -7/Data Miner | Free A-15 Conveyor | -7/Data Miner | Free B-60 Warrior | -7/Data Miner | Free Fabricated ------------ Imp. Flight Unit | x1 | -7/Factory Exp. Hacking Suite | x1 | -2/Research Alien Tech Used ----------------- None Achievements -------------- A Powerful Ally? All-out Warlord Charge!!! Reappropriation Challenges ------------ None Game ------ Seed GreatThrusterOptics Manual? 0 Play Time 04:06:24 Cumulative 69.5 hours Start 2024.07.09 @ 09:43:21 End 2024.07.10 @ 16:40:12 Sessions 11 Manual Loads 0 Difficulty Rogue Special Mode None Game No. 28 Rogue 28 Adventurer 0 Explorer 0 Win Type - Total 0 Types 0/0/0/0/0/0/0/0/0 Lore% 32 Gallery% 44 Achievement% 43 Wizard Run 0 Options --------- Layout 2 ASCII 0 Keyboard 1 Movement Numpad Keybinds 0 Fullscreen 2 Font 24/Smallcaps Map View 50x44 Zoom Use 0% Tactical HUD 1 Map Filters NONE Filters NONE Steam 1 RUN: a3d74ff3-cbe9-4f6f-b56c-215668897ec9